bitfinex/quotes_ETHUSD_20240722
["timestamp","ask_amount","ask_price","bid_price","bid_amount"]
[1721614272394,5.83248,3530.5,3529.8,0.08629203]
[1721614272615,5.83248,3530.5,3529.7,2.83307]
[1721614272820,5.83248,3530.5,3529.7,3.46273315]
[1721614273113,2.83255,3530.4,3529.8,0.08629203]
[1721614273300,3.0,3530.5,3529.8,2.91929203]
[1721614273504,3.0,3530.5,3529.9,2.83292]
[1721614273898,10.31243,3530.6,3530.0,0.056654]
[1721614273899,7.48,3530.6,3530.0,0.056654]
[1721614274082,7.48,3530.6,3530.0,0.08628277]
[1721614274308,7.48,3530.6,3530.2,2.83262]
[1721614274476,7.48,3530.6,3530.3,3.399146]
[1721614274681,2.83213,3531.0,3530.3,3.48541488]
[1721614275318,2.83224,3530.8,3530.3,0.08626888]
[1721614275509,2.83244,3530.6,3530.3,0.08626888]
[1721614275704,2.83231,3530.7,3530.0,2.83285]
[1721614275880,2.8322,3530.9,3530.1,2.83277]
[1721614276239,5.83225,3530.8,3530.1,2.9189451]
[1721614276447,5.83207,3531.0,3530.1,0.0861751]
[1721614276750,5.83207,3531.0,3529.6,2.4272]
[1721614276751,5.83207,3531.0,3530.2,2.83267]
[1721614276912,5.83207,3531.0,3530.3,0.08617852]
[1721614277110,5.83207,3531.0,3530.2,3.399215]
[1721614277310,5.83207,3531.0,3530.3,0.08617852]
[1721614277549,5.83207,3531.0,3530.2,3.399215]
[1721614277742,5.83207,3531.0,3530.3,0.08617852]
[1721614277948,2.83215,3530.9,3530.0,2.83278]
[1721614278147,2.83238,3530.6,3530.1,0.08618778]
[1721614278446,2.83238,3530.6,3529.6,5.26036]
[1721614278447,0.04070323,3530.8,3529.6,2.4272]
[1721614278647,2.83222,3530.8,3530.2,2.91880364]
[1721614278952,2.83222,3530.8,3529.8,2.833]
[1721614278953,2.83239,3530.6,3530.3,0.08616901]
[1721614279105,2.83239,3530.6,3529.8,2.83297]
[1721614279313,2.83246,3530.5,3529.9,0.08618753]
[1721614280851,2.8327,3530.2,3529.9,0.08618753]
[1721614281064,2.39220323,3530.5,3529.9,0.08618753]
[1721614281065,2.83286,3530.0,3529.9,0.08618753]
[1721614281212,2.83286,3530.0,3529.1,2.83356]
[1721614281408,3.0,3530.4,3529.1,2.83356]
[1721614281409,2.87371323,3529.9,3529.1,2.83356]
[1721614281642,2.87371323,3529.9,3529.2,0.08623423]
[1721614281643,2.83301,3529.9,3529.2,0.08623423]
[1721614281822,2.83301,3529.9,3529.2,2.83348]
[1721614282646,2.83282,3530.1,3529.4,2.83333]
[1721614283054,7.48,3530.2,3529.5,2.91947983]
[1721614283356,7.48,3530.2,3529.5,0.08622983]
[1721614283526,7.48,3530.2,3529.5,5.37797983]
[1721614283727,7.48,3530.2,3529.6,0.08627909]
[1721614284757,2.83303,3529.8,3529.6,0.08627909]
[1721614284956,2.83286,3530.0,3529.3,2.8334]
[1721614285255,2.83286,3530.0,3529.4,0.08628836]
[1721614285630,0.04070323,3529.9,3529.4,0.08628836]
[1721614285840,0.04070323,3529.9,3529.2,2.83349]
[1721614286163,10.31271,3530.2,3529.5,2.83326]
[1721614286867,2.83271,3530.2,3529.5,2.83326]
[1721614287179,2.83271,3530.2,3529.6,0.08627909]
[1721614287383,2.83271,3530.2,3529.5,2.83326]
[1721614287685,2.83271,3530.2,3529.6,0.08627909]
[1721614287983,2.83271,3530.2,3529.5,2.83326]
[1721614288186,5.83255,3530.4,3529.6,0.08627909]
[1721614288342,5.83255,3530.4,3528.8,5.29226]
[1721614288343,2.83279,3530.1,3529.4,2.83327]
[1721614288543,2.83279,3530.1,3529.5,0.08628372]
[1721614288765,2.83279,3530.1,3529.4,2.83327]
[1721614289490,2.83286,3530.0,3529.4,2.83327]
[1721614289777,2.83276,3530.2,3529.4,2.83327]
[1721614290182,2.83276,3530.2,3529.5,2.83326]
[1721614291491,3.42243369,3530.2,3529.5,2.83326]
[1721614291691,3.42243369,3530.2,3528.8,5.29226]
[1721614291692,2.2915,3529.9,3529.3,2.83342]
[1721614291993,0.58967369,3529.9,3529.4,2.83334]
[1721614292796,0.58967369,3529.9,3529.5,2.83324]
[1721614293005,0.58967369,3530.0,3529.5,2.83324]
[1721614293203,0.58967369,3529.9,3529.4,0.566683]
[1721614293504,0.58967369,3529.7,3529.3,2.83337]
[1721614293799,0.58967369,3529.7,3529.4,0.08628836]
[1721614294095,0.58967369,3529.6,3529.1,2.83355]
[1721614294297,0.58967369,3529.7,3529.5,0.08628372]
[1721614294460,0.58967369,3529.7,3529.1,2.83355]
[1721614294666,0.58967369,3529.6,3529.1,2.83355]
[1721614294891,0.58967369,3529.6,3529.2,0.08629762]
[1721614295278,0.63037692,3529.7,3529.2,0.08629762]
[1721614295798,2.83326,3529.5,3529.2,0.08629762]
[1721614295963,2.83326,3529.5,3528.9,2.83373]
[1721614295964,0.58967369,3529.4,3528.9,2.83373]
[1721614296168,0.58967369,3529.4,3529.0,0.08634176]
[1721614297024,0.58967369,3529.5,3529.0,2.91997176]
[1721614297308,0.58967369,3529.5,3529.0,3.49535094]
[1721614298414,0.58967369,3529.6,3529.0,3.49535094]
[1721614298572,0.58967369,3529.7,3529.4,2.83332]
[1721614298771,4.00393712,3530.1,3529.5,0.89681291]
[1721614298772,0.58967369,3529.8,3529.5,0.89681291]
[1721614298978,0.87836034,3530.0,3529.5,0.810442]
[1721614298979,0.58967369,3529.9,3529.5,0.810442]
[1721614299282,0.58967369,3529.9,3529.5,3.643642]
[1721614299484,0.58967369,3529.9,3529.5,0.810442]
[1721614299671,0.58967369,3529.9,3529.6,0.08636786]
[1721614299672,0.58967369,3529.8,3529.6,0.08636786]
[1721614299872,0.58967369,3529.7,3529.6,0.08636786]
[1721614300071,0.58967369,3529.7,3529.4,2.83332]
[1721614300072,0.58967369,3529.8,3529.4,2.83332]
[1721614300399,0.58967369,3529.9,3529.5,0.0863725]
[1721614300714,0.58967369,3529.8,3529.5,0.0863725]
[1721614301575,0.58967369,3529.9,3529.5,0.0863725]
[1721614301770,0.58967369,3529.9,3529.5,2.9196225]
[1721614302214,0.58967369,3529.9,3529.5,3.73869375]
[1721614303781,0.58967369,3529.9,3529.5,0.90544375]
[1721614304113,0.58967369,3529.8,3529.5,0.0863725]
[1721614304280,0.58967369,3529.7,3529.5,0.0863725]
[1721614304475,0.58967369,3529.6,3529.2,2.83349]
[1721614304792,0.58834364,3529.6,3529.2,2.83349]
[1721614304995,0.58834364,3529.6,3529.3,0.08635164]
[1721614305289,0.58834364,3529.6,3529.2,2.83349]
[1721614305487,0.58834364,3529.6,3529.4,0.086347]
[1721614305688,0.58834364,3529.7,3529.3,2.91976164]
[1721614305887,0.58834364,3529.8,3529.3,3.46628108]
[1721614306116,0.58834364,3529.8,3529.4,2.919657]
[1721614306346,0.58834364,3529.9,3529.4,2.83331]
[1721614306612,0.58834364,3529.8,3529.4,2.83331]
[1721614307120,0.58834364,3529.8,3529.5,0.08634237]
[1721614307592,0.58834364,3529.9,3529.5,0.08634237]
[1721614307784,0.58834364,3529.8,3529.4,2.83331]
[1721614307985,0.58834364,3529.8,3529.5,0.08634237]
[1721614307986,3.42136364,3529.8,3529.5,0.08634237]
[1721614308180,0.58834364,3529.7,3529.5,0.08634237]
[1721614308383,0.58834364,3529.6,3529.1,2.83358]
[1721614308579,3.71138034,3529.8,3529.2,0.08635627]
[1721614308580,0.58834364,3529.7,3529.2,0.08635627]
[1721614308812,0.58834364,3529.7,3529.2,2.91985627]
[1721614309681,3.42144364,3529.7,3529.2,0.08635627]
[1721614309882,0.58834364,3529.7,3529.2,0.08635627]
[1721614310195,0.58834364,3529.6,3529.2,0.08635627]
[1721614310392,0.58834364,3529.7,3529.2,3.61516971]
[1721614312492,0.58834364,3529.7,3529.3,2.83335]
[1721614312704,0.58834364,3529.8,3529.3,2.83335]
[1721614312919,0.58834364,3529.8,3529.4,0.08634544]
[1721614313118,0.58834364,3529.8,3529.4,2.91966544]
[1721614313322,0.58834364,3529.8,3529.5,0.64484789]
[1721614313624,0.58834364,3529.8,3529.6,0.08633617]
[1721614314898,0.58834364,3529.9,3529.6,0.08633617]
[1721614318025,3.42144364,3529.7,3529.6,0.08633617]
[1721614318201,3.42144364,3529.7,3528.9,2.4484]
[1721614318404,3.42144364,3529.7,3529.1,2.83357]
[1721614318605,3.42144364,3529.7,3529.2,0.08635312]
[1721614319134,0.58834364,3529.7,3529.2,2.91983312]
[1721614319644,0.58834364,3529.7,3529.3,2.83341]
[1721614320100,0.58834364,3529.8,3529.4,0.08634385]
[1721614321035,0.58834364,3529.8,3529.6,2.83316]
[1721614321191,0.58834364,3529.8,3529.4,3.49496624]
[1721614321397,0.58834364,3529.8,3529.5,2.83324]
[1721614321696,0.58834364,3529.8,3529.6,0.08633459]
[1721614322097,0.58834364,3529.8,3529.3,2.83338]
[1721614322320,0.58834364,3529.6,3529.3,2.83338]
[1721614322728,0.58834364,3529.6,3529.1,2.83355]
[1721614323235,0.58834364,3529.6,3529.1,3.669601]
[1721614324203,0.58834364,3529.5,3529.1,3.669601]
[1721614326335,0.58834364,3529.4,3529.1,3.669601]
[1721614326535,0.58834364,3529.4,3529.2,2.83349]
[1721614326699,3.66104712,3529.8,3529.3,2.83342]
[1721614326700,0.58834364,3529.5,3529.3,2.83342]
[1721614328738,0.58834364,3529.5,3529.2,0.9196431]
[1721614328925,0.58834364,3529.4,3529.1,2.83353]
[1721614329118,0.58834364,3529.4,3529.3,0.08634215]
[1721614329505,0.58834364,3529.4,3529.1,2.83353]
[1721614329706,0.58834364,3529.4,3529.3,0.08634215]
[1721614329945,0.58834364,3529.4,3528.9,5.52696]
[1721614329946,0.58834364,3529.4,3529.2,0.08634678]
[1721614330124,0.58834364,3529.4,3529.3,0.08352344]
[1721614330511,0.58834364,3529.4,3529.3,2.83342]
[1721614330711,0.58834364,3529.5,3529.3,2.83342]
[1721614330929,0.58834364,3529.5,3529.3,2.91694344]
[1721614331128,0.58834364,3529.5,3529.3,0.08352344]
[1721614331641,0.58834364,3529.4,3529.2,2.83349]
[1721614331942,0.58834364,3529.4,3529.3,2.83342]
[1721614332814,0.58834364,3529.5,3529.4,2.83334]
[1721614334524,0.58834364,3529.6,3529.4,2.83334]
[1721614334859,0.58834364,3529.6,3529.5,2.83326]
[1721614335307,0.58834364,3529.6,3529.3,2.8334]
[1721614335656,0.58834364,3529.5,3529.3,2.8334]
[1721614336104,0.58834364,3529.5,3529.4,2.83334]
[1721614337839,0.87836034,3529.6,3529.3,0.6502938]
[1721614338149,0.58994873,3529.4,3529.3,0.6502938]
[1721614339344,0.58994873,3529.4,3529.3,3.4837138]
[1721614339653,0.58994873,3529.4,3529.3,6.3171338]
[1721614339808,0.58994873,3529.5,3529.3,0.6502938]
[1721614340008,0.58994873,3529.4,3528.9,5.52696]
[1721614340307,0.58994873,3529.4,3529.2,2.83349]
[1721614341129,0.58994873,3529.4,3529.3,2.83342]
[1721614341640,0.58994873,3529.4,3529.1,2.83353]
[1721614341833,0.58994873,3529.4,3529.1,3.724572]
[1721614342208,0.58994873,3529.3,3529.1,3.724572]
[1721614342409,0.58994873,3529.3,3529.1,0.891042]
[1721614342817,1.17114712,3529.6,3528.9,0.24484]
[1721614342818,0.58994873,3529.4,3529.0,2.83366]
[1721614343253,0.58994873,3529.4,3529.2,2.83344]
[1721614344154,0.58994873,3529.4,3529.3,0.0835108]
[1721614344856,0.58994873,3529.4,3529.2,2.83344]
[1721614345059,0.58994873,3529.4,3529.3,0.0835108]
[1721614345449,0.58994873,3529.4,3529.2,2.83344]
[1721614345760,0.58994873,3529.4,3529.3,0.0835108]
[1721614346048,0.87836034,3529.5,3529.2,2.83344]
[1721614346251,0.59019238,3529.3,3529.2,3.424634]
[1721614346566,0.87836034,3529.6,3529.5,2.83326]
[1721614346864,0.5902216,3529.6,3529.5,2.83326]
[1721614347022,0.87836034,3529.8,3529.5,2.83326]
[1721614347023,0.5902216,3529.7,3529.5,2.83326]
[1721614347425,0.87836034,3529.8,3529.5,2.83326]
[1721614347426,0.5902216,3529.6,3529.5,2.83326]
[1721614348554,0.59018611,3529.6,3529.4,2.83333]
[1721614348776,2.98208608,3529.5,3529.0,1.47774592]
[1721614348923,0.59016463,3529.1,3528.5,5.16665]
[1721614349120,0.59016463,3529.1,3528.7,2.83389]
[1721614349424,0.59016463,3529.1,3528.7,2.83388]
[1721614349958,0.59016463,3529.1,3528.9,2.83369]
[1721614351268,0.59016463,3529.1,3528.7,2.83388]
[1721614351423,0.59016463,3529.1,3528.8,2.8338]
[1721614351821,0.59016463,3529.1,3529.0,2.83366]
[1721614352245,0.59016463,3529.2,3529.0,2.83366]
[1721614353668,0.59016463,3529.2,3529.1,2.83358]
[1721614353872,0.59016463,3529.3,3529.2,5.667]
[1721614354027,0.59016463,3529.6,3529.3,2.83342]
[1721614354229,7.48,3529.8,3529.6,2.83318]
[1721614354230,0.59016463,3529.8,3529.6,2.83318]
[1721614354471,0.59016463,3530.0,3529.7,2.3599]
[1721614354765,0.59016463,3530.3,3530.2,2.8327]
[1721614354967,0.59016463,3530.4,3530.3,2.83262]
[1721614355350,1.17114712,3530.7,3530.4,2.83254]
[1721614355351,0.59016463,3530.5,3530.4,2.83254]
[1721614355673,0.59016463,3530.6,3530.5,2.83245]
[1721614355846,0.87836034,3530.8,3530.5,2.83245]
[1721614355847,0.59016463,3530.7,3530.5,2.83245]
[1721614356028,0.59016463,3530.7,3530.6,0.08351843]
[1721614356924,13.58114712,3531.0,3530.6,0.08351843]
[1721614356925,0.87836034,3530.8,3530.6,0.08351843]
[1721614357130,0.58980351,3530.7,3530.3,2.83259]
[1721614357331,0.58980351,3530.7,3530.4,2.83253]
[1721614357563,0.58980351,3530.7,3530.4,2.91605769]
[1721614357793,0.58980351,3530.7,3530.4,2.83253]
[1721614358773,0.58980351,3530.7,3530.5,0.08352306]
[1721614359298,0.58980351,3530.8,3530.5,0.08352306]
[1721614359652,0.58980351,3530.8,3530.5,2.83245]
[1721614360359,0.58980351,3530.9,3530.5,2.83245]
[1721614360579,7.48,3531.1,3530.5,0.6231679]
[1721614360580,8.06980351,3531.1,3530.5,0.6231679]
[1721614360864,0.58980351,3531.2,3530.6,2.83237]
[1721614361190,0.58980351,3531.2,3530.8,2.83215]
[1721614361537,2.90490351,3531.3,3530.8,2.83215]
[1721614362250,0.58980351,3531.3,3530.8,2.83215]
[1721614362451,0.58980351,3531.3,3530.6,2.83237]
[1721614362452,0.58980351,3531.4,3530.9,2.83213]
[1721614363466,0.58980351,3531.4,3530.7,2.83226]
[1721614363664,0.58980351,3531.4,3530.8,0.08350917]
[1721614364187,0.58980351,3531.4,3530.7,2.83226]
[1721614364394,0.58980351,3531.4,3530.8,2.83219]
[1721614364589,0.58980351,3531.4,3530.8,2.91569917]
[1721614364798,0.58980351,3531.4,3530.8,2.83219]
[1721614365392,8.06980351,3531.5,3530.8,2.83219]
[1721614366251,10.90145351,3531.5,3530.8,2.83219]
[1721614366604,10.90145351,3531.5,3530.4,2.83252]
[1721614366605,2.83189,3531.2,3530.4,2.83252]
[1721614366888,2.83189,3531.2,3530.1,2.83277]
[1721614366889,5.75834351,3531.4,3530.5,0.08323449]
[1721614367394,5.75834351,3531.4,3530.0,2.484]
[1721614367604,2.83182,3531.3,3530.1,1.136696]
[1721614367753,2.83192,3531.2,3530.4,2.8325]
[1721614367953,2.83198,3531.1,3530.4,2.8325]
[1721614368153,2.83198,3531.1,3530.5,0.08323449]
[1721614369158,2.83198,3531.1,3530.1,3.419466]
[1721614369361,2.83198,3531.1,3530.6,0.08322986]
[1721614369664,0.58980351,3531.2,3529.9,2.8329]
[1721614369665,2.8323,3530.7,3529.9,2.8329]
[1721614369870,0.04070323,3530.7,3529.9,2.8329]
[1721614370084,2.83233,3530.7,3530.0,2.91593262]
[1721614372349,2.88690351,3531.0,3530.3,2.83261]
[1721614372553,2.88690351,3531.0,3530.0,3.49083488]
[1721614372554,8.71897351,3531.0,3530.1,2.83273]
[1721614372779,5.71897351,3531.0,3530.1,2.83273]
[1721614373006,5.71897351,3531.0,3530.2,0.08312223]
[1721614373384,5.71897351,3531.0,3530.2,2.91579223]
[1721614374895,2.83214,3530.9,3530.2,2.91579223]
[1721614377674,2.3571,3530.8,3530.2,0.08312223]
[1721614377874,2.3571,3530.8,3530.0,2.83285]
[1721614378063,2.3571,3530.8,3530.1,0.08319306]
[1721614378271,2.94690351,3530.8,3530.1,0.08319306]
[1721614378600,2.3571,3530.8,3530.1,0.08319306]
[1721614378818,2.83232,3530.7,3530.1,0.08319306]
[1721614379358,2.83238,3530.6,3530.1,0.08319306]
[1721614379562,2.83238,3530.6,3529.1,5.984]
[1721614379563,2.83255,3530.4,3529.7,2.83308]
[1721614379876,2.3415,3530.4,3529.7,2.83308]
[1721614380075,2.3415,3530.4,3529.7,3.399713]
[1721614380269,2.3415,3530.4,3529.8,0.08321641]
[1721614380702,5.17405,3530.4,3529.8,0.08321641]
[1721614382480,2.3415,3530.4,3529.8,2.91622641]
[1721614382717,2.83241,3530.6,3529.9,2.83293]
[1721614382894,9.9797,3530.7,3530.1,2.83277]
[1721614383094,9.9797,3530.7,3530.2,0.08319789]
[1721614385017,2.4997,3530.7,3530.2,0.08319789]
[1721614385227,5.4997,3530.7,3530.2,0.08319789]
[1721614385429,5.4997,3530.7,3530.1,2.83277]
[1721614385583,5.4997,3530.7,3529.9,2.83293]
[1721614385784,5.4997,3530.7,3530.2,0.08319789]
[1721614385982,5.4997,3530.7,3529.9,2.83293]
[1721614386304,8.332,3530.7,3530.0,2.83285]
[1721614386517,8.332,3530.7,3530.0,2.91605715]
[1721614388137,8.92180351,3530.7,3530.0,2.91605715]
[1721614388783,2.83239,3530.6,3530.0,2.91605715]
[1721614389241,2.83247,3530.5,3530.0,0.08320715]
[1721614389821,2.87326323,3530.4,3530.0,0.08320715]
[1721614390025,2.83256,3530.4,3529.8,2.833]
[1721614390224,2.83256,3530.4,3529.8,3.399624]
[1721614390387,8.92181351,3530.7,3529.9,0.08324488]
[1721614390587,0.04070323,3530.6,3529.9,0.08324488]
[1721614390820,0.63050674,3530.6,3529.9,0.08324488]
[1721614391001,0.58980351,3530.6,3529.9,0.08324488]
[1721614391719,2.83247,3530.5,3529.9,0.08324488]
[1721614393695,0.58980351,3530.6,3529.9,0.08324488]
[1721614393696,2.83254,3530.4,3529.9,0.08324488]
[1721614394234,0.58980351,3530.6,3529.9,0.08324488]
[1721614394235,3.42222351,3530.6,3529.9,0.08324488]
[1721614394421,2.83247,3530.5,3529.9,0.08324488]
[1721614394624,0.58980351,3530.6,3529.9,2.91616488]
[1721614394927,0.58980351,3530.6,3530.0,2.83285]
[1721614395230,3.42218351,3530.6,3529.9,0.08324488]
[1721614395532,2.83247,3530.5,3530.0,0.08324025]
[1721614395742,3.42227351,3530.5,3530.0,0.08324025]
[1721614395901,3.42227351,3530.5,3529.8,2.83297]
[1721614396106,3.42227351,3530.5,3529.9,0.08324488]
[1721614397432,3.42241351,3530.4,3529.9,0.08324488]
[1721614397728,0.58980351,3530.3,3529.8,2.83302]
[1721614397894,0.58980351,3530.3,3530.0,0.08324025]
[1721614398091,0.58980351,3530.3,3529.8,2.83302]
[1721614398291,0.58980351,3530.3,3529.9,0.08324488]
[1721614398745,0.58980351,3530.3,3529.9,2.91617488]
[1721614398910,0.58980351,3530.4,3529.9,0.37487137]
[1721614399106,0.87836034,3530.5,3529.9,0.37487137]
[1721614399107,0.58980351,3530.5,3529.9,0.37487137]
[1721614399512,0.58980351,3530.7,3530.4,2.83247]
[1721614399896,0.58980351,3530.7,3530.5,0.08324705]
[1721614400132,0.58980351,3530.8,3530.5,0.08324705]
[1721614400430,0.58980351,3530.7,3530.5,0.08324705]
[1721614400795,0.58980351,3530.7,3530.6,2.83237]
[1721614400991,0.58980351,3530.8,3530.6,2.83237]
[1721614401232,0.87836034,3530.9,3530.6,2.91552888]
[1721614401233,0.58980351,3530.7,3530.6,2.91552888]
[1721614401447,0.58980351,3530.8,3530.6,0.08315888]
[1721614401606,0.58980351,3530.7,3530.6,0.08315888]
[1721614402143,0.58980351,3530.7,3530.4,2.83251]
[1721614402327,0.58980351,3530.7,3530.6,0.08315888]
[1721614402490,0.58980351,3530.7,3530.5,0.08316351]
[1721614403240,0.58980351,3530.8,3530.5,2.91556351]
[1721614403740,0.58980351,3530.8,3530.6,2.83237]
[1721614403948,0.58980351,3530.8,3530.5,0.65798186]
[1721614403949,0.58980351,3531.0,3530.7,2.83229]
[1721614404098,0.58980351,3531.0,3530.7,2.91544425]
[1721614405094,0.58980351,3531.0,3530.7,2.83229]
[1721614405339,0.58980351,3531.0,3530.8,0.08314962]
[1721614406040,0.58980351,3531.0,3530.7,2.83222]
[1721614406395,0.58980351,3531.0,3530.8,0.08314962]
[1721614406826,0.58980351,3531.0,3530.7,2.83222]
[1721614407339,0.58980351,3531.0,3530.8,0.08314962]
[1721614407844,0.58980351,3531.0,3530.7,2.83222]
[1721614408205,0.58980351,3531.0,3530.8,0.08314962]
[1721614408749,0.58980351,3531.0,3530.7,2.83227]
[1721614409202,0.58980351,3531.0,3530.8,0.08314962]
[1721614409401,0.58980351,3531.1,3530.9,2.83213]
[1721614409741,0.58980351,3531.2,3531.0,2.91518036]
[1721614411063,1.17114712,3531.5,3531.1,2.83197]
[1721614411064,0.58980351,3531.4,3531.1,2.83197]
[1721614411201,0.58980351,3531.4,3531.3,2.83181]
[1721614411406,3.65654712,3531.8,3531.3,0.29149504]
[1721614411407,0.58980351,3531.7,3531.3,0.29149504]
[1721614411665,3.07520351,3531.8,3531.4,2.83173]
[1721614411854,0.58980351,3531.8,3531.4,2.83167]
[1721614412217,0.58980351,3531.9,3531.4,2.83167]
[1721614412423,8.06980351,3532.0,3531.4,2.83167]
[1721614413104,8.06980351,3532.0,3531.5,2.83165]
[1721614413299,8.06980351,3532.0,3531.6,2.83157]
[1721614414363,7.48,3532.0,3531.6,2.83157]
[1721614414699,7.48,3532.0,3531.4,2.83173]
[1721614414700,0.58980351,3532.1,3531.7,2.83149]
[1721614414938,0.58980351,3532.2,3531.8,0.08291889]
[1721614415435,3.0,3532.3,3531.7,2.83149]
[1721614415436,3.58980351,3532.3,3531.7,2.83149]
[1721614415739,3.58980351,3532.3,3531.8,0.08291889]
[1721614415969,4.66883961,3532.3,3531.8,0.08291889]
[1721614416271,0.58980351,3532.2,3531.7,2.83149]
[1721614416479,7.49984961,3532.3,3531.5,2.83161]
[1721614416602,0.58980351,3532.2,3531.8,0.08291889]
[1721614416805,1.94271951,3532.2,3531.5,2.83161]
[1721614417025,3.58980351,3532.2,3531.9,0.08291427]
[1721614417227,3.58980351,3532.2,3531.5,2.83161]
[1721614417414,3.58980351,3532.2,3532.0,0.08290964]
[1721614417415,3.0,3532.2,3532.0,0.08290964]
[1721614417613,3.0,3532.2,3531.5,2.83161]
[1721614418030,3.0,3532.2,3531.6,0.08292815]
[1721614418654,3.0,3532.2,3531.6,2.91446815]
[1721614419030,3.0,3532.3,3531.6,2.91446815]
[1721614419919,5.83103,3532.3,3531.6,2.91446815]
[1721614420149,7.66584089,3532.3,3531.6,2.91446815]
[1721614420363,7.07603738,3532.3,3531.6,2.91446815]
[1721614420733,7.07603738,3532.3,3531.6,0.08292815]
[1721614420734,4.24500738,3532.3,3531.6,0.08292815]
[1721614420929,4.83481089,3532.3,3531.6,0.08292815]
[1721614421148,4.83481089,3532.3,3531.4,2.83173]
[1721614421760,2.83118,3532.1,3531.4,2.83173]
[1721614422056,2.83126,3532.0,3531.3,2.83178]
[1721614422355,2.83113,3532.2,3531.4,0.08279404]
[1721614422571,2.83122,3532.1,3531.4,0.08279404]
[1721614423620,2.83122,3532.1,3531.4,2.91450404]
[1721614425631,2.83127,3532.0,3531.4,0.08279404]
[1721614426254,2.83111,3532.2,3531.4,0.08279404]
[1721614426459,2.83119,3532.1,3531.4,0.08279404]
[1721614429557,2.83162,3531.6,3531.4,0.08279404]
[1721614429757,2.87235323,3531.5,3531.4,0.08279404]
[1721614430062,2.83165,3531.5,3530.8,2.83221]
[1721614430460,2.83165,3531.5,3530.9,0.08007911]
[1721614430658,2.83165,3531.5,3530.8,2.83221]
[1721614430868,2.83165,3531.5,3531.0,0.08007448]
[1721614431161,2.83157,3531.6,3531.1,0.08006985]
[1721614431538,2.83157,3531.6,3531.0,2.83205]
[1721614431750,2.83157,3531.6,3531.2,0.08006522]
[1721614431956,9.7963,3531.8,3531.2,2.83189]
[1721614432339,9.7963,3531.8,3531.3,0.08009979]
[1721614432741,9.7963,3531.8,3531.2,2.83189]
[1721614432969,12.62772,3531.8,3531.0,2.83202]
[1721614433174,12.62772,3531.8,3531.3,0.08009979]
[1721614433332,12.62772,3531.8,3531.0,3.502535]
[1721614433333,12.62772,3531.8,3531.0,2.83202]
[1721614433539,12.62772,3531.8,3531.1,2.83197]
[1721614433741,12.62772,3531.8,3531.1,2.91207905]
[1721614433941,7.48,3531.8,3531.2,2.83188]
[1721614435547,2.83143,3531.8,3531.1,2.83196]
[1721614435741,2.83143,3531.8,3531.3,0.08009979]
[1721614436055,2.83143,3531.8,3531.2,0.08010442]
[1721614436258,2.83143,3531.8,3531.1,2.83196]
[1721614436439,2.83143,3531.8,3531.3,0.08009979]
[1721614436643,2.83143,3531.8,3531.2,0.08010442]
[1721614436843,2.83143,3531.8,3531.1,2.83196]
[1721614437063,2.83143,3531.8,3531.3,0.08009979]
[1721614437282,2.83143,3531.8,3531.2,0.08010442]
[1721614437459,2.83143,3531.8,3531.1,2.83196]
[1721614437653,2.83143,3531.8,3531.3,0.08009979]
[1721614437877,2.83143,3531.8,3531.2,0.08010442]
[1721614438076,2.83143,3531.8,3531.1,2.83196]
[1721614438387,2.83143,3531.8,3531.2,0.08010442]
[1721614438551,5.2423,3531.7,3531.2,0.08010442]
[1721614438852,5.24233,3531.7,3530.9,2.83208]
[1721614439501,2.4108,3531.7,3531.0,2.83202]
[1721614439791,5.24229,3531.7,3531.0,2.83202]
[1721614440008,5.24229,3531.7,3531.0,3.39843]
[1721614440499,5.24229,3531.7,3531.1,0.08008553]
[1721614440847,5.24229,3531.7,3531.0,3.39843]
[1721614441180,2.4108,3531.7,3531.1,2.91203553]
[1721614442752,5.83142,3531.8,3531.1,2.91203553]
[1721614443080,5.83142,3531.8,3531.1,3.54308808]
[1721614443285,6.42122351,3531.8,3531.1,3.54308808]
[1721614444856,3.58980351,3531.8,3531.2,2.83189]
[1721614445271,0.58980351,3531.7,3531.2,2.83189]
[1721614445476,0.58980351,3531.7,3531.1,0.63105255]
[1721614445794,0.58980351,3531.7,3531.2,0.08012165]
[1721614447068,0.58980351,3531.6,3531.2,0.08012165]
[1721614448043,0.58980351,3531.7,3531.2,0.08012165]
[1721614448315,0.58980351,3531.6,3531.2,0.08012165]
[1721614448790,0.58980351,3531.5,3531.2,0.08012165]
[1721614448994,0.58980351,3531.5,3530.9,2.83211]
[1721614449194,0.58980351,3531.5,3531.3,0.08010761]
[1721614449393,0.58980351,3531.5,3531.0,2.83199]
[1721614449592,0.58980351,3531.5,3531.4,0.08010298]
[1721614449795,0.58980351,3531.5,3531.0,2.83199]
[1721614449998,0.58980351,3531.5,3531.4,0.08010298]
[1721614450199,0.58980351,3531.5,3531.0,2.83199]
[1721614450613,0.58980351,3531.5,3531.1,0.08011687]
[1721614451379,0.58980351,3531.4,3531.1,0.08011687]
[1721614451876,0.58980351,3531.5,3531.1,0.65454656]
[1721614452226,0.58980351,3531.5,3531.1,0.08011687]
[1721614452404,0.58980351,3531.5,3531.1,2.52491687]
[1721614452607,0.58980351,3531.5,3531.1,2.4448]
[1721614452809,0.58980351,3531.5,3531.2,2.91200224]
[1721614453480,0.58980351,3531.5,3531.3,2.83175]
[1721614453678,0.58980351,3531.6,3531.3,3.65060522]
[1721614453901,0.58980351,3531.6,3531.4,0.08010298]
[1721614456919,0.58980351,3531.5,3531.4,0.08010298]
[1721614457125,0.87836034,3531.7,3531.4,0.08010298]
[1721614457126,0.58980351,3531.6,3531.4,0.08010298]
[1721614457290,0.58980351,3531.5,3531.4,0.08010298]
[1721614457702,0.87836034,3531.7,3531.4,0.08010298]
[1721614457703,0.58980351,3531.6,3531.4,0.08010298]
[1721614458984,0.58980351,3531.5,3531.4,0.08010298]
[1721614459699,2.2691,3531.8,3531.4,0.08010298]
[1721614459700,3.70996034,3531.6,3531.4,0.08010298]
[1721614459898,3.70996034,3531.6,3530.7,2.83222]
[1721614460209,0.59171747,3531.4,3530.8,1.06478161]
[1721614460411,0.59171747,3531.4,3530.8,0.08010569]
[1721614460909,0.59171747,3531.4,3531.0,2.83205]
[1721614461111,0.59171747,3531.4,3531.0,3.40648757]
[1721614461289,0.59171747,3531.5,3531.2,2.3128]
[1721614461802,0.59171747,3531.5,3531.3,0.08008254]
[1721614463723,0.59171747,3531.5,3531.4,2.83173]
[1721614464121,0.59171747,3531.5,3531.4,2.91180792]